[Event "III Menorca Open-A 2024"]
[Site "Ciutadella Menorca"]
[Date "2024.04.04"]
[Round "5.10"]
[White "Makkar, Rajat"]
[Black "Idani, Pouya"]
[Result "1/2-1/2"]
[ECO "E11"]
[WhiteElo "2452"]
[BlackElo "2609"]
[Annotator "TA"]
[PlyCount "29"]
[EventDate "2024.04.02"]
[EventType "swiss"]
[EventCountry "ESP"]
[SourceTitle "playchess.com"]
[Source "ChessBase"]
[SourceQuality "1"]
[TimeControl "5400+30"]

{[%evp 10,29,10,16,19,4,27,9,29,17,25,15,20,25,22,22,36,30,23,38,26,23]} 1. d4 {[%emt 0:00:09]} Nf6 {[%emt 0:00:05]} 2. c4 {[%emt 0:00:05]} e6 {[%emt 0:00:04]} 3. Nf3 {[%emt 0:00:05]} Bb4+ {[%emt 0:00:05]} 4. Bd2 {[%emt 0:00:43]} Qe7 {[%emt 0:00:06]} 5. e3 {[%emt 0:00:27]} O-O {[%emt 0:00:19]} 6. Bd3 {[%emt 0:00:23]} Bxd2+ {[%emt 0:00:35]} 7. Qxd2 {[%emt 0:00:34]} d5 {[%emt 0:02:29]} 8. O-O {[%emt 0:03:23]} b6 {[%emt 0:02:05] The position is equal.} 9. cxd5 {[%emt 0:01:08]} exd5 {[%emt 0:00:05]} 10. Nc3 {[%emt 0:01:10]} c5 {[%emt 0:01:10]} 11. dxc5 {[%emt 0:06:53]} bxc5 {[%emt 0:00:06] [#]} 12. e4 $1 {[%emt 0:22:39]} d4 {[%emt 0:11:44]} (12... Nxe4 $2 {too greedy.} 13. Nxd5 Qe8 14. Qf4 $18) (12... dxe4 13. Rfe1) 13. e5 {[%emt 0:03:56]} dxc3 {[%emt 0:00:18]} 14. exf6 {[%emt 0:00:07]} Qxf6 {[%emt 0:00:04]} 15. Qxc3 {[%emt 0:00:18] A rather calm draw.   Weighted Error Value: White=0.03 (flawless) /Black=0.09 (flawless) .  OK:         	White=3     	---        Best:        	White=1     	Black=1} 1/2-1/2

[Event "III Menorca Open-A 2024"]
[Site "Ciutadella Menorca"]
[Date "2024.04.04"]
[Round "5.11"]
[White "Mamedov, Edgar"]
[Black "Pichot, Alan"]
[Result "0-1"]
[ECO "D37"]
[WhiteElo "2317"]
[BlackElo "2644"]
[Annotator "TA"]
[PlyCount "96"]
[EventDate "2024.04.02"]
[EventType "swiss"]
[EventCountry "ESP"]
[SourceTitle "playchess.com"]
[Source "ChessBase"]
[SourceQuality "1"]
[TimeControl "5400+30"]

{[%evp 18,96,0,0,0,0,9,-6,8,3,11,0,22,0,0,0,0,0,0,0,0,-76,-13,-102,-102,-90,-91,-88,-30,-80,-94,-81,-87,-86,-102,-97,-72,-116,-115,-153,-154,-161,-175,-156,-155,-143,-146,-148,-144,-139,-153,-157,-152,-112,-119,-115,-117,-112,-115,-298,-308,-293,-319,-406,-387,-383,-368,-466,-464,-538,-531,-504,-504,-667,-629,-691,-659,-687,-669,-766,-771]} 1. d4 {[%emt 0:00:20]} Nf6 {[%emt 0:00:08]} 2. c4 {[%emt 0:00:21]} e6 {[%emt 0:00:11]} 3. Nf3 {[%emt 0:00:26]} d5 {[%emt 0:00:22]} 4. Nc3 {[%emt 0:00:30]} a6 {[%emt 0:00:38]} 5. c5 {[%emt 0:01:40]} b6 {[%emt 0:01:41]} 6. cxb6 {[%emt 0:00:17] D37: Queen's Gambit Declined: 5 Bf4.} c5 {[%emt 0:00:11]} 7. Bf4 {[%emt 0:01:01]} Bd6 {[%emt 0:00:15]} 8. Bxd6 {[%emt 0:04:38]} Qxd6 {[%emt 0:00:12]} 9. dxc5 {[%emt 0:00:20]} Qxc5 {[%emt 0:00:12]} 10. Qd4 {[%emt 0:00:15]} Qd6 {[%emt 0:00:07]} 11. e3 {[%emt 0:01:34]} Nbd7 {[%emt 0:00:20]} 12. Be2 {[%emt 0:01:31]} Qxb6 {[%emt 0:00:52]} (12... e5 {is interesting.} 13. Qa4 O-O 14. Qa3 Qxb6 15. O-O Bb7) 13. Qxb6 {[%emt 0:05:18]} Nxb6 {[%emt 0:00:24]} 14. O-O $146 {[%emt 0:06:19]} ({Predecessor:} 14. Nd4 Bd7 15. Kd2 Ke7 16. Rhc1 Rhc8 17. Ke1 e5 18. Nf3 Kd6 19. Rd1 h6 20. Rac1 {½-½ Mirzoev,A (2416)-Kaustuv,K (2242) Maharashtra op 2nd 2023 (7)}) 14... Bd7 {[%emt 0:01:16]} 15. a4 {[%emt 0:14:57]} a5 {[%emt 0:07:23]} 16. Ne5 {[%emt 0:06:52]} Ke7 {[%emt 0:01:46]} 17. Bb5 {[%emt 0:01:55]} Rhc8 {[%emt 0:04:38]} 18. Rfc1 {[%emt 0:04:27]} Rc5 {[%emt 0:03:39]} 19. Na2 {[%emt 0:07:27]} (19. f3 $11) 19... Ne4 {[%emt 0:09:00]} (19... Nxa4 $2 20. Bxa4 Rcc8 21. Rxc8 Bxc8 22. Nc3 $18) ({Black should play} 19... Rxc1+ $17 20. Rxc1 Bxb5 (20... Nxa4 $2 21. Nxd7 Nxb2 22. Nxf6 $18) 21. axb5 Nfd7 22. Nc6+ Kd6) 20. Bxd7 {[%emt 0:13:30]} (20. Rxc5 $11 {remains equal.} Nxc5 21. Nxd7 Ncxd7 (21... Nbxd7 $2 22. b4 $19) 22. Rc1) 20... Nxd7 $17 {[%emt 0:01:06]} 21. Nc6+ {[%emt 0:00:44]} Kf6 {[%emt 0:02:58]} 22. f3 {[%emt 0:07:31]} Nd6 {[%emt 0:02:24]} (22... Nd2 $17 {Hoping for ...Nb3.} 23. Rxc5 Nxc5) 23. Rxc5 {[%emt 0:03:07]} (23. b3 $11) 23... Nxc5 $17 {[%emt 0:01:18]} 24. Nc3 {[%emt 0:00:03]} Nc4 {[%emt 0:15:31]} 25. e4 {[%emt 0:00:56]} dxe4 {[%emt 0:01:36]} (25... Nxb2 $6 26. exd5 Ra6 27. Ne4+ Nxe4 28. fxe4 exd5 29. exd5 $11) 26. fxe4 {[%emt 0:01:34]} g6 {[%emt 0:02:07]} (26... Nxb2 27. Rf1+ Kg5 (27... Kg6 28. Ne5+ Kh6 29. Nxf7+ Kg6 30. Ne5+ Kg5 31. Nb5 $11) 28. Rxf7 $11) 27. e5+ {[%emt 0:05:25]} Kg7 $1 {[%emt 0:00:41]} (27... Nxe5 $2 28. Rf1+ Kg7 29. Nxe5 $18) 28. Nb5 {[%emt 0:00:18]} Nxb2 {[%emt 0:04:32]} 29. Nd6 {[%emt 0:01:01]} Ra6 {[%emt 0:07:04]} (29... Ncxa4 30. Ra2 $17) 30. Nd8 {[%emt 0:00:45]} f5 {[%emt 0:00:06]} (30... Ncxa4 31. Ra2 $17) 31. Rc1 {[%emt 0:03:45]} Nbd3 {[%emt 0:08:27]} (31... Ncxa4 $2 32. Nxe6+ Kh6 33. Nc7 $18) 32. Rc3 {[%emt 0:00:16]} Nxe5 {[%emt 0:00:52]} (32... Nxa4 33. Nxe6+ (33. Rxd3 Nc5 $18) 33... Kh6 34. Rxd3 g5 35. Nf7+ (35. Nxf5+ Kg6 $18) 35... Kg6 36. Nh8+ (36. Nexg5 Nc5 $18) 36... Kh5 37. Rh3+ Kg4 38. Rg3+ Kh4 39. Nxg5 f4 40. Nf3+ Kh5 41. Rg5+ Kh6 42. Nf7#) 33. Nxf5+ {[%emt 0:02:06]} exf5 {[%emt 0:05:54]} 34. Rxc5 {[%emt 0:00:04]} Kf6 {[%emt 0:00:07]} 35. h3 {[%emt 0:02:32]} Rd6 {[%emt 0:03:54]} 36. Nb7 {[%emt 0:00:06]} Rd1+ {[%emt 0:00:05]} 37. Kh2 {[%emt 0:00:14]} Rd2 {[%emt 0:00:09]} 38. Nxa5 $2 {[%emt 0:01:06]} (38. Kg1 $17) 38... Nf3+ $19 {[%emt 0:01:19]} 39. Kg3 {[%emt 0:00:05]} Ne1 {[%emt 0:00:05]} 40. Rc6+ {[%emt 0:01:22]} Kg5 {[%emt 0:00:23]} 41. h4+ {[%emt 0:00:06]} Kh5 {[%emt 0:00:10]} 42. Rc7 {[%emt 0:00:18]} h6 {[%emt 0:03:01]} ({Stronger than} 42... Nxg2 43. Rxh7#) (42... Rxg2+ 43. Kf4 Rg4+ (43... Kxh4 44. Rxh7#) 44. Ke3 Re4+ (44... Rxh4 45. Rxh7+ Kg5 46. Rxh4 $11) (44... Kxh4 $2 45. Nc4 $19) 45. Kf2 $19) 43. Nc6 {[%emt 0:01:28]} Rxg2+ {[%emt 0:01:23]} 44. Kf4 {[%emt 0:00:04]} Rg4+ {[%emt 0:00:43]} 45. Ke5 {[%emt 0:00:15]} Nf3+ {[%emt 0:00:30]} 46. Kf6 {[%emt 0:00:04]} Rxa4 {[%emt 0:00:08]} 47. Ne7 {[%emt 0:00:21]} Nxh4 {[%emt 0:00:36]} ({Weaker is} 47... Kxh4 48. Kxg6 (48. Nxg6+ $2 {is the wrong capture.} Kg4 $19) 48... Kg4 49. Kxh6 $11) 48. Kg7 {[%emt 0:00:17]} f4 {[%emt 0:01:20]} 0-1

[Event "III Menorca Open-A 2024"]
[Site "Ciutadella Menorca"]
[Date "2024.04.04"]
[Round "5.12"]
[White "Fedoseev, Vladimir"]
[Black "Castellanos Rodriguez, Renier"]
[Result "1-0"]
[ECO "B90"]
[WhiteElo "2690"]
[BlackElo "2467"]
[Annotator "TA"]
[PlyCount "92"]
[EventDate "2024.04.02"]
[EventType "swiss"]
[EventCountry "ESP"]
[SourceTitle "playchess.com"]
[Source "ChessBase"]
[SourceQuality "1"]
[TimeControl "5400+30"]

{[%evp 15,92,17,9,2,17,0,19,17,13,18,24,13,16,22,18,0,54,56,47,46,53,21,75,37,40,41,41,29,34,24,57,48,47,49,60,26,56,33,53,47,56,46,54,41,37,29,27,27,42,31,34,2,24,27,27,27,32,32,31,37,52,52,63,68,64,63,202,211,301,297,307,323,320,320,787,558,542,541,465]} 1. e4 {[%emt 0:00:03]} c5 {[%emt 0:00:08]} 2. Nf3 {[%emt 0:00:06]} d6 {[%emt 0:00:19]} 3. d4 {[%emt 0:00:06]} cxd4 {[%emt 0:00:06]} 4. Nxd4 {[%emt 0:00:05]} Nf6 {[%emt 0:00:08]} 5. Nc3 {[%emt 0:00:05]} a6 {[%emt 0:00:11]} 6. Be3 {[%emt 0:00:08]} e5 {[%emt 0:05:09]} 7. Nb3 {[%emt 0:00:38]} Be6 {[%emt 0:00:10]} 8. Qd2 {[%emt 0:02:38]} Nbd7 {[%emt 0:01:54]} 9. O-O-O {[%emt 0:00:16]} Be7 {[%emt 0:01:24]} 10. Kb1 {[%emt 0:04:50]} Ng4 {[%emt 0:06:26]} 11. g3 {[%emt 0:00:21] The position is equal.} Nxe3 {[%emt 0:03:44]} 12. Qxe3 {[%emt 0:00:01]} Qb6 {[%emt 0:02:30]} 13. Qd2 {[%emt 0:01:32]} Nf6 {[%emt 0:03:05]} 14. f4 {[%emt 0:00:25]} Rc8 {[%emt 0:01:07][%cal Oc8c3]} 15. Bd3 {[%emt 0:00:27]} h5 {[%emt 0:09:36]} (15... Bd7 $11) 16. f5 $14 {[%emt 0:03:28]} Bd7 {[%emt 0:14:22]} 17. h3 {[%emt 0:00:15][%cal Og3g4]} Bc6 {[%emt 0:03:03]} 18. Qg2 {[%emt 0:00:57]} Qe3 {[%emt 0:01:39]} (18... Qd8 $11 {keeps the balance.}) 19. Rde1 {[%emt 0:03:58]} Qg5 {[%emt 0:01:43]} 20. Rhf1 {[%emt 0:04:57]} Bd8 {[%emt 0:06:32]} 21. a3 {[%emt 0:00:34]} b5 {[%emt 0:00:36]} 22. Nd5 {[%emt 0:09:20]} Bxd5 {[%emt 0:02:33]} 23. exd5 {[%emt 0:00:01]} Bb6 {[%emt 0:01:33]} 24. Nd2 {[%emt 0:01:05]} Qh6 {[%emt 0:05:17]} 25. Qe2 {[%emt 1:06:44]} (25. Ne4 {feels hotter.} Ke7 26. Qf3 Bc5 27. Nxf6 Qxf6 28. c3) 25... Kf8 26. Be4 {[%emt 0:00:00]} Qg5 {[%emt 0:05:21]} 27. Rf3 {[%emt 0:00:00]} Ba5 {[%emt 0:03:22]} 28. c3 {[%emt 0:00:00]} Bb6 {[%emt 0:00:09]} 29. Ref1 {[%emt 0:00:00]} Ke7 {[%emt 0:22:53]} 30. Bd3 {[%emt 0:00:00]} Rhe8 {[%emt 0:00:00]} 31. a4 {[%emt 0:00:00]} bxa4 {[%emt 0:00:00]} 32. Ne4 {[%emt 0:00:00]} Nxe4 {[%emt 0:00:00]} 33. Bxe4 {[%emt 0:00:00]} Kf6 {[%emt 0:00:00]} 34. Qxa6 {[%emt 0:00:00]} Rb8 {[%emt 0:00:00]} 35. Kc2 {[%emt 0:00:00][%cal Of1a1]} Bc5 {[%emt 0:00:00]} 36. Qxa4 {[%emt 0:05:30]} Re7 {[%emt 0:00:00]} 37. Rb1 {[%emt 0:00:00]} Ra7 {[%emt 0:00:00]} 38. Qc4 {[%emt 0:01:00]} Ke7 {[%emt 0:00:00]} 39. Bd3 {[%emt 0:00:30]} Qh6 {[%emt 0:00:29]} 40. Qe4 {[%emt 0:00:00]} Ra2 {[%emt 0:00:37] A mistake that costs the game.} (40... Kf8 $14) 41. Bc4 $18 {[%emt 0:00:00]} Ra4 {[%emt 0:00:31]} (41... Ra7 $142 42. f6+ (42. b4 Bb6 $18) 42... gxf6) 42. b4 {[%emt 0:00:00]} Bb6 {[%emt 0:00:17] [#]} 43. f6+ $1 {[%emt 0:00:00][%mdl 512]} gxf6 {[%emt 0:00:08]} 44. Rbf1 {[%emt 0:02:30] Strongly threatening Qh4.} Rc8 $2 {[%emt 0:04:15]} (44... Rg8 45. Rxf6 Qxf6 46. Rxf6 Kxf6 47. Qf3+ Ke7 48. Qxh5 Be3) 45. Rxf6 {[%emt 0:00:00]} Qxf6 {[%emt 0:00:18]} 46. Rxf6 {[%emt 0:00:00]} Kxf6 {[%emt 0:00:05] Weighted Error Value: White=0.17 (very precise) /Black=0.21 (precise) .  Mistake:       	---       	Black=5      Inaccurate:     	White=4     	Black=2      OK:         	White=14    	Black=10     Best:        	White=4     	---        Brilliant:      	White=1     	---} 1-0

[Event "III Menorca Open-A 2024"]
[Site "Ciutadella Menorca"]
[Date "2024.04.04"]
[Round "5.13"]
[White "Lagarde, Maxime"]
[Black "Zhu, Jiner"]
[Result "1/2-1/2"]
[ECO "E05"]
[WhiteElo "2638"]
[BlackElo "2463"]
[Annotator "TA"]
[PlyCount "116"]
[EventDate "2024.04.02"]
[EventType "swiss"]
[EventCountry "ESP"]
[SourceTitle "playchess.com"]
[Source "ChessBase"]
[SourceQuality "1"]
[TimeControl "5400+30"]

{[%evp 40,116,98,70,84,85,152,149,140,115,142,25,18,18,27,21,27,31,31,31,29,24,22,32,33,33,25,13,13,13,70,60,75,66,75,47,75,75,75,52,52,52,52,24,34,14,138,8,87,0,104,0,0,0,0,0,0,0,0,0,0,0,0,0,0,0,0,0,0,0,0,0,0,0,0,0,0,0,0]} 1. d4 {[%emt 0:00:02]} Nf6 {[%emt 0:00:18]} 2. Nf3 {[%emt 0:00:05]} d5 {[%emt 0:00:16]} 3. g3 {[%emt 0:01:14]} e6 {[%emt 0:00:29]} 4. Bg2 {[%emt 0:00:12]} Be7 {[%emt 0:00:10]} 5. O-O {[%emt 0:00:09]} O-O {[%emt 0:02:39]} 6. c4 {[%emt 0:00:04]} dxc4 {[%emt 0:00:09]} 7. Qc2 {[%emt 0:00:08]} b5 {[%emt 0:00:14]} 8. a4 {[%emt 0:00:17] E05: Open Catalan: 5 Nf3 Be7.} b4 {[%emt 0:00:09]} 9. Nfd2 {[%emt 0:00:09]} Nd5 {[%emt 0:00:09]} 10. Nxc4 {[%emt 0:00:05]} c5 {[%emt 0:00:24]} 11. dxc5 {[%emt 0:00:10]} Bxc5 {[%emt 0:10:33]} 12. e4 {[%emt 0:00:38]} Nb6 {[%emt 0:01:08]} 13. Ncd2 {[%emt 0:00:25]} N8d7 {[%emt 0:02:47]} 14. a5 {[%emt 0:00:31]} Ba6 {[%emt 0:00:07]} 15. axb6 {[%emt 0:00:41]} Rc8 {[%emt 0:06:06]} 16. Qd1 {[%emt 0:06:07]} Qxb6 {[%emt 0:00:08]} 17. Nb3 {[%emt 0:00:15]} Bxf1 {[%emt 0:00:11]} 18. Qxf1 {[%emt 0:00:55]} h6 {[%emt 0:02:45]} 19. N1d2 {[%emt 0:04:25]} Ne5 {[%emt 0:05:10]} 20. Nxc5 {[%emt 0:00:11]} Qxc5 {[%emt 0:00:16]} 21. Nb3 {[%emt 0:00:11]} Qc7 {[%emt 0:05:34]} 22. Bf4 {[%emt 0:00:13]} g5 {[%emt 0:05:25]} ({Black should play} 22... Qc4) 23. Bxe5 $1 $16 {[%emt 0:01:21]} Qxe5 {[%emt 0:00:09]} 24. Qe2 {[%emt 0:01:38]} (24. Rxa7 $2 Qxb2 25. h4 Qxb3 $19) 24... Qc7 {[%emt 0:03:36]} 25. Bf1 {[%emt 0:02:49]} (25. Qh5 $1 $16 {[%cal Rh5h6]} Kh7 (25... Qc2 $2 26. Qxh6 Qxb3 27. Qxg5+ Kh7 28. Qh5+ Kg7 29. Qg4+ Kh6 30. Ra5 $18) 26. Bf1) 25... Qc2 $11 {[%emt 0:08:41]} 26. Na5 {[%emt 0:03:59]} Rfd8 {[%emt 0:10:36]} 27. Nc4 {[%emt 0:00:21]} b3 $1 {[%emt 0:02:34]} 28. Rxa7 $146 {[%emt 0:00:22]} ({Predecessor:} 28. Qg4) 28... Rd1 {[%emt 0:06:52]} 29. Qf3 {[%emt 0:00:05]} Rxf1+ {[%emt 0:00:11]} 30. Kxf1 {[%emt 0:00:05]} Qxc4+ {[%emt 0:00:04]} 31. Kg2 {[%emt 0:00:10]} Rf8 {[%emt 0:00:08]} 32. Rb7 {[%emt 0:00:40]} f5 {[%emt 0:00:33]} 33. Rxb3 {[%emt 0:11:41]} fxe4 {[%emt 0:00:39]} 34. Qe3 {[%emt 0:00:36]} e5 {[%emt 0:10:02]} (34... Rf3 $11 35. Rb8+ Kg7) 35. Rc3 {[%emt 0:03:27]} Qd4 {[%emt 0:00:54]} 36. Qe2 {[%emt 0:00:48]} Rf7 {[%emt 0:01:59]} 37. Re3 {[%emt 0:01:06]} Kg7 {[%emt 0:02:01]} 38. b3 {[%emt 0:04:45]} (38. Rxe4 Rxf2+ 39. Qxf2 Qxe4+ 40. Kh3 Qd3 $11) 38... Qd5 {[%emt 0:01:39]} 39. Qc2 {[%emt 0:08:57]} (39. Rxe4 Kf8 40. b4 Ra7 41. Qf3+ Kg7) 39... Rf3 {[%emt 0:02:23]} 40. Qc4 {[%emt 0:01:25]} (40. Qxe4 {simplifies} Qxe4 41. Rxe4 Rxb3 42. Rxe5 Kf6 43. Ra5) 40... Qb7 {[%emt 0:03:21]} 41. b4 {[%emt 0:03:48]} Rxe3 {[%emt 0:00:33]} 42. fxe3 {[%emt 0:00:04]} g4 {[%emt 0:03:46]} (42... h5 $1 $11) 43. b5 {[%emt 0:00:51]} (43. Qe6 $1 $16 {[%cal Re6g4]}) 43... Qd7 {[%emt 0:01:18] [#]} (43... Qa7 $11) 44. Kf2 {[%emt 0:00:13]} ({Of course not} 44. Qxe4 $6 Qd2+ 45. Kf1 Qd1+ 46. Kf2 Qd2+ 47. Kf1 Qd1+ 48. Kf2 Qd2+ 49. Kf1 $11) (44. Qe2 $1 $16) 44... Kf6 {[%emt 0:02:26] [#]} (44... h5 $11) 45. Ke2 {[%emt 0:02:06]} ({Don't play} 45. Qxe4 $6 Qd2+ 46. Kf1 Qd1+ 47. Kf2 Qd2+ 48. Kf1 Qd1+ 49. Kf2 Qd2+ $11) ({Only move:} 45. b6 $1 $16) 45... Qa7 $11 {[%emt 0:00:23]} 46. Qb3 {[%emt 0:03:20]} Qb6 {[%emt 0:00:09]} 47. Qd5 {[%emt 0:01:29]} h5 {[%emt 0:01:57]} 48. Kd2 {[%emt 0:01:25]} Qc7 {[%emt 0:00:10]} 49. Qb3 {[%emt 0:01:13]} Qb6 {[%emt 0:00:17]} 50. Qd5 {[%emt 0:03:51]} Qc7 {[%emt 0:00:13]} 51. Kd1 {[%emt 0:00:48]} Qc3 {[%emt 0:01:56]} 52. b6 {[%emt 0:02:04]} Qb2 $1 {[%emt 0:00:21]} 53. Qc6+ {[%emt 0:00:26]} (53. b7 $5 Qb1+ $8 54. Ke2 Qb2+ 55. Kd1 Qb1+ 56. Kd2 Qb2+ 57. Ke1 Qb4+ 58. Kf1 Qb1+ 59. Ke2 Qb2+ 60. Kd1 $11) 53... Kf5 {[%emt 0:00:25]} 54. Qc8+ {[%emt 0:04:12]} (54. b7 $5 Qb1+ $8 55. Qc1 Qxb7 56. Qc4 $11) 54... Kf6 {[%emt 0:00:13]} 55. Qf8+ {[%emt 0:02:26]} Ke6 {[%emt 0:00:37]} 56. Qc8+ {[%emt 0:01:22]} Kf6 {[%emt 0:00:05]} 57. b7 {[%emt 0:00:03]} Qb1+ {[%emt 0:00:05]} 58. Kd2 {[%emt 0:00:10]} Qb2+ {[%emt 0:00:03]} 1/2-1/2

[Event "III Menorca Open-A 2024"]
[Site "Ciutadella Menorca"]
[Date "2024.04.04"]
[Round "5.14"]
[White "Murzin, Volodar"]
[Black "Bilych, Olexiy"]
[Result "1-0"]
[ECO "E08"]
[WhiteElo "2632"]
[BlackElo "2451"]
[Annotator "TA"]
[PlyCount "59"]
[EventDate "2024.04.02"]
[EventType "swiss"]
[EventCountry "ESP"]
[SourceTitle "playchess.com"]
[Source "ChessBase"]
[SourceQuality "1"]
[TimeControl "5400+30"]

{[%evp 15,59,25,27,30,29,0,37,24,39,54,41,49,37,30,39,36,46,35,77,85,105,118,107,91,97,113,158,155,146,166,147,116,268,266,264,281,424,436,481,429,477,479,473,471,466,473]} 1. Nf3 {[%emt 0:00:03]} d5 {[%emt 0:00:16]} 2. g3 {[%emt 0:00:06]} Nf6 {[%emt 0:03:21]} 3. Bg2 {[%emt 0:00:19]} e6 {[%emt 0:00:06]} 4. O-O {[%emt 0:00:27]} Be7 {[%emt 0:00:04]} 5. d4 {[%emt 0:02:34]} O-O {[%emt 0:00:09]} 6. c4 {[%emt 0:00:07]} a5 {[%emt 0:01:51]} 7. Qc2 {[%emt 0:01:45]} Nbd7 {[%emt 0:00:26]} 8. Bf4 {[%emt 0:10:56]} c6 {[%emt 0:00:11]} 9. Rd1 {[%emt 0:08:29]} h6 {[%emt 0:06:09]} 10. Nc3 {[%emt 0:05:57]} b6 {[%emt 0:02:04]} 11. Ne5 {[%emt 0:02:24] White is slightly better.} Nxe5 {[%emt 0:00:04]} 12. dxe5 {[%emt 0:00:22]} Nd7 {[%emt 0:00:03]} 13. cxd5 {[%emt 0:00:50]} cxd5 {[%emt 0:00:04]} ({Reject} 13... exd5 $6 14. e4 d4 15. Rxd4 $16) 14. e4 {[%emt 0:13:37]} d4 {[%emt 0:00:04]} 15. Rxd4 {[%emt 0:06:07]} g5 {[%emt 0:02:12]} 16. Bc1 $36 {[%emt 0:03:02][%cal Bf4c1,Bc1e3,Be3d4,Bd4f6][%mdl 2080] White has good play.} Bc5 {[%emt 0:01:08]} 17. Rd1 {[%emt 0:00:26] White is more active.} Qc7 {[%emt 0:13:22][%cal Of8d8]} 18. Na4 {[%emt 0:03:11]} Qxe5 {[%emt 0:00:45]} 19. Nxc5 {[%emt 0:07:41]} Nxc5 {[%emt 0:05:53]} 20. Be3 {[%emt 0:01:46]} Ba6 {[%emt 0:00:16]} 21. Bd4 {[%emt 0:00:47]} Qc7 {[%emt 0:00:08]} 22. Qc3 {[%emt 0:02:32]} Kh7 {[%emt 0:04:25]} 23. Bf6 {[%emt 0:12:29] [#] Repels Rad8. h4 is the strong threat. This pair of bishops is nice.} Be2 $2 {[%emt 0:02:27] Black cannot hold the game after this.} (23... Bb7 $16 {was worth a try.} 24. Rac1 Bc6) 24. Rd4 $18 {[%emt 0:01:57] And now e5 would win.} Rac8 {[%emt 0:01:53]} 25. Qd2 {[%emt 0:00:52]} Bh5 {[%emt 0:00:19]} (25... e5 {might work better.} 26. Rd5 Bc4) 26. e5 {[%emt 0:00:53] White is clearly winning.} Rg8 {[%emt 0:02:43]} 27. h4 {[%emt 0:01:02]} g4 {[%emt 0:00:04]} 28. Rc1 {[%emt 0:01:22]} Bg6 {[%emt 0:00:09]} 29. Rxg4 {[%emt 0:01:45] Black is weak on the dark squares} Bf5 {[%emt 0:01:36]} 30. Rd4 {[%emt 0:01:12] Weighted Error Value: White=0.03 (flawless) /Black=0.24 (precise) .  Mistake:       	---       	Black=2      Inaccurate:     	White=1     	Black=3      OK:         	White=16    	Black=9      Best:        	White=2     	---} 1-0